fUST/lending_fUST_20250827
["ID","MTS","AMOUNT","RATE_DAILY","PERIOD"]
[381542583,1756273851310,-974.0,0.0003559,2]
[381542584,1756273851319,-638.0,0.0003559,2]
[381542585,1756273851328,-2157.0,0.0003559,2]
[381542586,1756273851341,-222.915027,0.000358,30]
[381542587,1756273851351,-168.0,0.00035869,2]
[381542588,1756273851360,-1860.0,0.00035882,2]
[381542589,1756273851369,-168.0,0.00035901,2]
[381542590,1756273851378,-160.0,0.00035983,6]
[381542591,1756273851387,-3497.48191502,0.00036,120]
[381542592,1756273851396,-4072.09,0.00036,7]
[381542593,1756273851406,-160.0,0.00036,120]
[381542594,1756273851417,-217.23771399,0.00036,120]
[381542595,1756273851426,-232.59867797,0.00036,120]
[381542596,1756273851436,-845.298898,0.00036,120]
[381542597,1756273851445,-255.971837,0.00036008,2]
[381542598,1756273851454,-208.0,0.0003601,30]
[381542599,1756273851463,-202.86105574,0.0003621,2]
[381542600,1756273851472,-263.8649941,0.0003624,2]
[381542601,1756273851482,-15072.24,0.000363,14]
[381542602,1756273851491,-222.915027,0.0003632,6]
[381542603,1756273851500,-242.15909246,0.00036425,2]
[381542604,1756273851509,-2055.36667473,0.0003643,2]
[381542605,1756273851518,-156.50371735,0.00036578,14]
[381542606,1756273851527,-155.56118263,0.00036578,14]
[381542607,1756273851536,-326.0,0.00036578,14]
[381542608,1756273851545,-326.0,0.00036578,14]
[381542609,1756273851555,-326.0,0.00036578,14]
[381542610,1756273851564,-160.0,0.00036941,7]
[381542611,1756273851573,-1613.0,0.00036983,2]
[381542612,1756273851583,-14759.85466551,0.00037,120]
[381542613,1756273851592,-62095.29,0.00037,14]
[381542614,1756273851601,-208.0,0.0003703,30]
[381542615,1756273851610,-153.0,0.00037041,30]
[381542616,1756273851619,-206.2496563,0.00037041,30]
[381542617,1756273851629,-153.0,0.00037041,30]
[381542618,1756273851638,-153.0,0.00037041,30]
[381542619,1756273851647,-176.8367364,0.0003707,30]
[381542620,1756273851656,-161.092233,0.0003707,30]
[381542621,1756273851665,-3208.43357252,0.00037166,28]
[381542622,1756273851675,-222.915027,0.00037257,7]
[381542623,1756273851684,-222.915027,0.00037304,2]
[381542624,1756273851693,-1000.0,0.00037533,7]
[381542625,1756273851702,-185.0,0.00037656,30]
[381542626,1756273851712,-203.59144419,0.00037698,14]
[381542627,1756273851721,-251.11897888,0.00037794,2]
[381542628,1756273851730,-201.334348,0.00037796,2]
[381542629,1756273851739,-288.5871894,0.00037892,30]
[381542630,1756273851749,-153.0,0.00037892,30]
[381542631,1756273851759,-306.0,0.00037892,30]
[381542632,1756273851768,-153.0,0.00037892,30]
[381542633,1756273851777,-160.0,0.00037898,8]
[381542634,1756273851786,-185.0,0.00037973,30]
[381542635,1756273851795,-207.2061002,0.00038,30]
[381542636,1756273851804,-15124.2377982,0.00038001,7]
[381542637,1756273851813,-208.0,0.0003805,30]
[381542638,1756273851823,-202.85787161,0.00038199,10]
[381542639,1756273851832,-154.0,0.000382,120]
[381542640,1756273851842,-15072.24,0.000382,14]
[381542641,1756273851851,-686.6901028,0.00038222,2]
[381542642,1756273851859,-500.0,0.0003823,7]
[381542643,1756273851869,-1000.0,0.00038355,7]
[381542644,1756273851878,-799.9,0.00038356,120]
[381542645,1756273851886,-200.27996,0.000385,120]
[381542646,1756273851896,-200.0,0.000385,120]
[381542647,1756273851905,-974.0,0.0003859,2]
[381542648,1756273851913,-638.0,0.0003859,2]
[381542649,1756273851923,-2157.0,0.0003859,2]
[381542650,1756273851932,-183.83709886,0.0003868,15]
[381542651,1756273851941,-325.30392541,0.000387,120]
[381542652,1756273851950,-160.0,0.00038856,9]
[381542653,1756273851958,-3208.43357252,0.00038892,32]
[381542654,1756273851968,-799.9,0.00038904,120]
[381542655,1756273851977,-500.0,0.0003904,5]
[381542656,1756273851986,-500.0,0.0003904,5]
[381542657,1756273851995,-208.0,0.0003906,30]
[381542658,1756273852004,-500.0,0.00039134,7]
[381542659,1756273852013,-500.0,0.00039143,7]
[381542660,1756273852021,-260.4103811,0.00039163,2]
[381542661,1756273852030,-500.0,0.00039167,7]
[381542662,1756273852039,-771.31,0.00039173,30]
[381542663,1756273852048,-500.0,0.00039173,7]
[381542664,1756273852057,-500.0,0.00039176,7]
[381542665,1756273852066,-1000.0,0.00039177,7]
[381542666,1756273852075,-500.0,0.00039183,7]
[381542667,1756273852084,-900.0,0.00039225,7]
[381542668,1756273852093,-500.0,0.00039236,7]
[381542669,1756273852102,-900.0,0.00039271,7]
[381542670,1756273852111,-222.915027,0.00039276,7]
[381542671,1756273852120,-500.0,0.00039331,7]
[381542672,1756273852129,-500.0,0.00039343,7]
[381542673,1756273852138,-900.0,0.00039367,7]
[381542674,1756273852147,-151.0,0.00039399,120]
[381542675,1756273852156,-151.0,0.00039399,120]
[381542676,1756273852165,-10514.98910704,0.000394,120]
[381542677,1756273852174,-600.0,0.00039451,2]
[381542678,1756273852183,-799.9,0.00039452,120]
[381542679,1756273852192,-1440.207087,0.00039452,120]
[381542680,1756273852201,-293.85068442,0.00039454,7]
[381542681,1756273852210,-500.0,0.00039458,7]
[381542682,1756273852219,-900.0,0.00039462,7]
[381542683,1756273852228,-500.0,0.00039477,7]
[381542684,1756273852237,-1708.13499716,0.00039481,10]
[381542685,1756273852247,-12500.0,0.00039485,10]
[381542686,1756273852256,-222.915027,0.00039491,6]
[381542687,1756273852265,-500.0,0.0003951,7]
[381542688,1756273852275,-500.0,0.00039526,7]
[381542689,1756273852284,-500.0,0.00039548,7]
[381542690,1756273852294,-500.0,0.00039554,7]
[381542691,1756273852303,-900.0,0.00039557,7]
[381542692,1756273852312,-900.0,0.0003957,7]
[381542693,1756273852321,-500.0,0.00039588,7]
[381542694,1756273852330,-200.0,0.00039601,120]
[381542695,1756273852343,-339.415213,0.00039654,2]
[381542696,1756273852352,-500.0,0.00039679,7]
[381542697,1756273852362,-400.0,0.0003969,3]
[381542698,1756273852371,-500.0,0.00039699,7]
[381542699,1756273852381,-900.0,0.00039699,7]
[381542700,1756273852390,-900.0,0.00039725,7]
[381542701,1756273852399,-153.2212726,0.00039725,2]
[381542702,1756273852410,-1500.0,0.00039726,120]
[381542703,1756273852419,-1500.0,0.00039726,120]
[381542704,1756273852428,-1500.0,0.00039726,120]
[381542705,1756273852437,-1500.0,0.00039726,120]
[381542706,1756273852446,-1500.0,0.00039726,120]
[381542707,1756273852455,-1500.0,0.00039726,120]
[381542708,1756273852464,-1500.0,0.00039726,120]
[381542709,1756273852473,-1500.0,0.00039726,120]
[381542710,1756273852483,-1500.0,0.00039726,120]
[381542711,1756273852492,-1500.0,0.00039726,120]
[381542712,1756273852501,-1500.0,0.00039726,120]
[381542713,1756273852511,-1500.0,0.00039726,120]
[381542714,1756273852520,-1500.0,0.00039726,120]
[381542715,1756273852530,-1500.0,0.00039726,120]
[381542716,1756273852539,-1500.0,0.00039726,120]
[381542717,1756273852549,-1090.90835374,0.00039726,120]
[381542718,1756273852558,-500.0,0.00039765,7]
[381542719,1756273852567,-900.0,0.00039769,7]
[381542720,1756273852576,-900.0,0.00039794,7]
[381542721,1756273852585,-160.0,0.00039813,10]
[381542722,1756273852595,-500.0,0.0003982,30]
[381542723,1756273852604,-500.0,0.00039858,7]
[381542724,1756273852613,-600.0,0.00039862,2]
[381542725,1756273852623,-900.0,0.00039864,7]
[381542726,1756273852632,-185.0,0.00039871,90]
[381542727,1756273852641,-500.0,0.00039878,7]
[381542728,1756273852651,-900.0,0.00039885,7]
[381542729,1756273852660,-900.0,0.00039887,7]
[381542730,1756273852669,-299.85755598,0.000399,120]
[381542731,1756273852679,-299.85755598,0.000399,120]
[381542732,1756273852688,-299.85755598,0.000399,120]
[381542733,1756273852698,-299.85755598,0.000399,120]
[381542734,1756273852708,-299.85755598,0.000399,120]
[381542735,1756273852717,-299.85755598,0.000399,120]
[381542736,1756273852727,-299.85755598,0.000399,120]
[381542737,1756273852736,-299.85755598,0.000399,120]
[381542738,1756273852745,-299.85755598,0.000399,120]
[381542739,1756273852755,-500.0,0.00039943,7]
[381542740,1756273852764,-500.0,0.00039951,7]
[381542741,1756273852773,-900.0,0.00039951,7]
[381542742,1756273852783,-500.0,0.00039952,7]
[381542743,1756273852791,-1000.0,0.00039999,7]
[381542744,1756273852801,-471.63464168,0.00039999,31]
[381542745,1756273852811,-173.4989074,0.00039999,31]
[381542746,1756273852820,-500.0,0.00039999,31]
[381542747,1756273852829,-500.0,0.00039999,31]
[381542748,1756273852838,-500.0,0.00039999,31]
[381542749,1756273852848,-500.0,0.00039999,31]
[381542750,1756273852858,-500.0,0.00039999,31]
[381542751,1756273852867,-500.0,0.00039999,31]
[381542752,1756273852875,-500.0,0.00039999,31]
[381542753,1756273852886,-500.0,0.00039999,31]
[381542754,1756273852895,-500.0,0.00039999,31]
[381542755,1756273852905,-500.0,0.00039999,31]
[381542756,1756273852914,-500.0,0.00039999,31]
[381542757,1756273852923,-500.0,0.00039999,31]
[381542758,1756273852932,-500.0,0.00039999,31]
[381542759,1756273852941,-500.0,0.00039999,31]
[381542760,1756273852950,-500.0,0.00039999,31]
[381542761,1756273852959,-500.0,0.00039999,31]
[381542762,1756273852968,-500.0,0.00039999,31]
[381542763,1756273852978,-500.0,0.00039999,31]
[381542764,1756273852987,-500.0,0.00039999,31]
[381542765,1756273852996,-478.80466889,0.00039999,31]
[381542766,1756273853006,-500.0,0.00039999,31]
[381542767,1756273853015,-500.0,0.00039999,31]
[381542768,1756273853025,-500.0,0.00039999,31]
[381542769,1756273853034,-500.0,0.00039999,31]
[381542770,1756273853044,-500.0,0.00039999,31]
[381542771,1756273853054,-500.0,0.00039999,31]
[381542772,1756273853063,-500.0,0.00039999,31]
[381542773,1756273853073,-500.0,0.00039999,31]
[381542774,1756273853083,-500.0,0.00039999,31]
[381542775,1756273853093,-500.0,0.00039999,31]
[381542776,1756273853102,-500.0,0.00039999,31]
[381542777,1756273853112,-385.43385938,0.00039999,2]
[381542778,1756273853121,-500.0,0.00039999,31]
[381542779,1756273853132,-500.0,0.00039999,31]
[381542780,1756273853142,-500.0,0.00039999,31]
[381542781,1756273853152,-500.0,0.00039999,31]
[381542782,1756273853161,-500.0,0.00039999,31]
[381542783,1756273853170,-500.0,0.00039999,31]
[381542784,1756273853180,-500.0,0.00039999,31]
[381542785,1756273853189,-500.0,0.00039999,31]
[381542786,1756273853198,-500.0,0.00039999,31]
[381542787,1756273853207,-500.0,0.00039999,31]
[381542788,1756273853217,-500.0,0.00039999,31]
[381542789,1756273853226,-203.89712672,0.00039999,31]
[381542790,1756273853235,-500.0,0.00039999,31]
[381542791,1756273853245,-500.0,0.00039999,31]
[381542792,1756273853254,-500.0,0.00039999,31]
[381542793,1756273853263,-500.0,0.00039999,31]
[381542794,1756273853272,-500.0,0.00039999,31]
[381542795,1756273853282,-500.0,0.00039999,31]
[381542796,1756273853292,-500.0,0.00039999,31]
[381542797,1756273853302,-500.0,0.00039999,31]
[381542798,1756273853311,-500.0,0.00039999,31]
[381542799,1756273853320,-500.0,0.00039999,31]
[381542800,1756273853330,-500.0,0.00039999,31]
[381542801,1756273853344,-500.0,0.00039999,31]
[381542802,1756273853353,-500.0,0.00039999,31]
[381542803,1756273853362,-500.0,0.00039999,31]
[381542804,1756273853372,-500.0,0.00039999,31]
[381542805,1756273853382,-243.64140066,0.00039999,31]
[381542806,1756273853391,-500.0,0.00039999,31]
[381542807,1756273853400,-500.0,0.00039999,31]
[381542808,1756273853411,-500.0,0.00039999,31]
[381542809,1756273853421,-500.0,0.00039999,31]
[381542810,1756273853430,-500.0,0.00039999,31]
[381542811,1756273853439,-500.0,0.00039999,31]
[381542812,1756273853449,-500.0,0.00039999,31]
[381542813,1756273853458,-500.0,0.00039999,31]
[381542814,1756273853468,-500.0,0.00039999,31]
[381542815,1756273853477,-500.0,0.00039999,31]
[381542816,1756273853487,-500.0,0.00039999,31]
[381542817,1756273853496,-500.0,0.00039999,31]
[381542818,1756273853506,-533.50741404,0.00039999,31]
[381542819,1756273853515,-500.0,0.00039999,31]
[381542820,1756273853524,-500.0,0.00039999,31]
[381542821,1756273853534,-500.0,0.00039999,31]
[381542822,1756273853543,-500.0,0.00039999,31]
[381542823,1756273853553,-500.0,0.00039999,31]
[381542824,1756273853562,-500.0,0.00039999,31]
[381542825,1756273853571,-407.10536009,0.00039999,31]
[381542826,1756273853581,-500.0,0.00039999,31]
[381542827,1756273853590,-500.0,0.00039999,31]
[381542828,1756273853600,-500.0,0.00039999,31]
[381542829,1756273853609,-500.0,0.00039999,31]
[381542830,1756273853620,-500.0,0.00039999,31]
[381542831,1756273853630,-500.0,0.00039999,31]
[381542832,1756273853644,-756.19451266,0.0004,120]
[381542833,1756273853654,-200.20381708,0.0004,120]
[381542834,1756273853664,-31134.4226457,0.0004,120]
[381542835,1756273854210,-4435.3598543,0.0004,120]
[381542836,1756273854219,-500.0,0.0004,2]
[381542837,1756273854228,-27680.2420763,0.0004,120]
[381542838,1756273854238,-17489.72595328,0.0004,120]
[381542839,1756273854247,-802.45443619,0.0004,30]
[381542840,1756273854256,-4219.08,0.0004,60]
[381542841,1756273854265,-29571.913077,0.0004,10]
[381542842,1756273854274,-160.0,0.0004,10]
[381542843,1756273854283,-160.0,0.0004,120]
[381542844,1756273854292,-160.0,0.0004,30]
[381542845,1756273854301,-425.44119842,0.0004,10]
[381542846,1756273854310,-425.44119842,0.0004,30]
[381542847,1756273854319,-217.23771399,0.0004,10]
[381542848,1756273854329,-217.23771399,0.0004,120]
[381542849,1756273854341,-217.23771399,0.0004,30]
[381542850,1756273854350,-799.9,0.0004,120]
[381542851,1756273854359,-232.59867797,0.0004,10]
[381542852,1756273854368,-232.59867797,0.0004,120]
[381542853,1756273854377,-845.298898,0.0004,10]
[381542854,1756273854388,-845.298898,0.0004,120]
[381542855,1756273854397,-845.298898,0.0004,30]
[381542856,1756273854406,-500.0,0.00040005,30]
[381542857,1756273854416,-500.0,0.00040014,30]
[381542858,1756273854425,-900.0,0.00040055,30]
[381542859,1756273854434,-2258.0,0.00040075,5]
[381542860,1756273854443,-208.0,0.0004008,30]
[381542861,1756273854452,-500.0,0.00040086,30]
[381542862,1756273854462,-756.25,0.00040089,14]
[381542863,1756273854471,-1661.55,0.00040089,14]
[381542864,1756273854487,-8933.95,0.00040089,14]
[381542865,1756273854497,-500.0,0.000401,30]
[381542866,1756273854507,-900.0,0.0004011,30]
[381542867,1756273854516,-500.0,0.00040119,30]
[381542868,1756273854526,-500.0,0.00040132,30]
[381542869,1756273854535,-500.0,0.00040134,30]
[381542870,1756273854544,-500.0,0.00040135,30]
[381542871,1756273854554,-500.0,0.00040136,30]
[381542872,1756273854563,-222.915027,0.00040146,2]
[381542873,1756273854572,-150.648891,0.00040146,2]
[381542874,1756273854582,-173.556485,0.00040146,2]
[381542875,1756273854591,-900.0,0.00040154,30]
[381542876,1756273854600,-900.0,0.00040192,30]
[381542877,1756273854610,-500.0,0.00040259,30]
[381542878,1756273854619,-500.0,0.00040273,120]
[381542879,1756273854629,-500.0,0.00040273,120]
[381542880,1756273854639,-500.0,0.00040273,120]
[381542881,1756273854648,-500.0,0.00040273,120]
[381542882,1756273854658,-500.0,0.00040273,120]
[381542883,1756273854667,-500.0,0.00040273,120]
[381542884,1756273854676,-500.0,0.00040273,120]
[381542885,1756273854694,-500.0,0.00040273,120]
[381542886,1756273854710,-500.0,0.00040273,120]
[381542887,1756273854731,-500.0,0.00040273,120]
[381542888,1756273854750,-500.0,0.00040273,120]
[381542889,1756273854760,-500.0,0.00040273,120]
[381542890,1756273854769,-500.0,0.00040273,120]
[381542891,1756273854778,-500.0,0.00040273,120]
[381542892,1756273854788,-500.0,0.00040273,120]
[381542893,1756273854797,-500.0,0.00040273,120]
[381542894,1756273854807,-500.0,0.00040273,120]
[381542895,1756273854816,-443.25642389,0.00040273,120]
[381542896,1756273854827,-600.0,0.00040273,2]
[381542897,1756273854836,-8629.62995869,0.00040274,10]
[381542898,1756273854846,-500.0,0.00040281,30]
[381542899,1756273854856,-900.0,0.00040303,30]
[381542900,1756273854865,-200.0,0.00040389,120]
[381542901,1756273854874,-499.3,0.00040391,30]
[381542902,1756273854884,-500.0,0.00040405,30]
[381542903,1756273854893,-500.0,0.00040431,30]
[381542904,1756273854902,-201.0,0.0004045,55]
[381542905,1756273854912,-500.0,0.00040464,30]
[381542906,1756273854921,-500.0,0.00040467,30]
[381542907,1756273854930,-500.0,0.0004047,30]
[381542908,1756273854940,-900.0,0.00040514,30]
[381542909,1756273854949,-270.0455652,0.00040532,2]
[381542910,1756273854958,-500.0,0.00040534,30]
[381542911,1756273854968,-799.9,0.00040547,120]
[381542912,1756273854977,-900.0,0.00040595,30]
[381542913,1756273854987,-204.252474,0.000406,2]
[381542914,1756273854996,-500.0,0.00040608,30]
[381542915,1756273855005,-500.0,0.00040617,30]
[381542916,1756273855015,-3208.43357252,0.00040619,36]
[381542917,1756273855024,-500.0,0.00040624,30]
[381542918,1756273855034,-500.0,0.00040628,30]
[381542919,1756273855043,-900.0,0.00040655,30]
[381542920,1756273855052,-500.0,0.00040668,30]
[381542921,1756273855062,-500.0,0.00040679,30]
[381542922,1756273855071,-600.0,0.00040684,2]
[381542923,1756273855080,-500.0,0.00040697,30]
[381542924,1756273855090,-200.0,0.000407,120]
[381542925,1756273855099,-500.0,0.00040706,30]
[381542926,1756273855108,-500.0,0.00040711,30]
[381542927,1756273855118,-299.85755598,0.00040721,120]
[381542928,1756273855127,-200.0,0.00040743,120]
[381542929,1756273855136,-900.0,0.00040766,30]
[381542930,1756273855145,-160.0,0.00040771,11]
[381542931,1756273855155,-161.51516944,0.00040771,5]
[381542932,1756273855163,-500.0,0.00040779,30]
[381542933,1756273855173,-70051.00319286,0.000408,30]
[381542934,1756273855182,-86919.96301903,0.000408,120]
[381542935,1756273855191,-157.1,0.000408,120]
[381542936,1756273855200,-321.5797,0.000408,2]
[381542937,1756273855210,-321.5797,0.000408,2]
[381542938,1756273855220,-1000.0,0.00040821,7]
[381542939,1756273855229,-480.0,0.00040821,120]
[381542940,1756273855238,-480.0,0.00040821,120]
[381542941,1756273855247,-480.0,0.00040821,120]
[381542942,1756273855256,-480.0,0.00040821,120]
[381542943,1756273855265,-480.0,0.00040821,120]
[381542944,1756273855275,-480.0,0.00040821,120]
[381542945,1756273855284,-480.0,0.00040821,120]
[381542946,1756273855293,-480.0,0.00040821,120]
[381542947,1756273855302,-435.60249108,0.00040821,120]
[381542948,1756273855311,-500.0,0.00040821,2]
[381542949,1756273855320,-500.0,0.00040821,2]
[381542950,1756273855330,-500.0,0.00040821,2]
[381542951,1756273855343,-500.0,0.00040821,2]
[381542952,1756273855352,-500.0,0.00040821,2]
[381542953,1756273855361,-500.0,0.00040821,2]
[381542954,1756273855370,-500.0,0.00040821,2]
[381542955,1756273855380,-500.0,0.00040821,2]
[381542956,1756273855389,-153.68950293,0.00040821,2]
[381542957,1756273855398,-480.0,0.00040821,120]
[381542958,1756273855408,-480.0,0.00040821,120]
[381542959,1756273855417,-480.0,0.00040821,120]
[381542960,1756273855426,-480.0,0.00040821,120]
[381542961,1756273855436,-484.08977263,0.00040821,120]
[381542962,1756273855445,-480.0,0.00040821,120]
[381542963,1756273855454,-480.0,0.00040821,120]
[381542964,1756273855463,-480.0,0.00040821,120]
[381542965,1756273855473,-480.0,0.00040821,120]
[381542966,1756273855482,-480.0,0.00040821,120]
[381542967,1756273855491,-480.0,0.00040821,120]
[381542968,1756273855501,-480.0,0.00040821,120]
[381542969,1756273855510,-480.0,0.00040821,120]
[381542970,1756273855519,-449.08228157,0.00040821,120]
[381542971,1756273855529,-480.0,0.00040821,120]
[381542972,1756273855538,-480.0,0.00040821,120]
[381542973,1756273855547,-480.0,0.00040821,120]
[381542974,1756273855557,-480.0,0.00040821,120]
[381542975,1756273855566,-480.0,0.00040821,120]
[381542976,1756273855576,-480.0,0.00040821,120]
[381542977,1756273855585,-480.0,0.00040821,120]
[381542978,1756273855594,-480.0,0.00040821,120]
[381542979,1756273855603,-480.0,0.00040821,120]
[381542980,1756273855613,-480.0,0.00040821,120]
[381542981,1756273855622,-420.0,0.00040821,120]
[381542982,1756273855631,-480.0,0.00040821,120]
[381542983,1756273855641,-480.0,0.00040821,120]
[381542984,1756273855650,-349.56850654,0.00040821,120]
[381542985,1756273855660,-480.0,0.00040821,120]
[381542986,1756273855669,-480.0,0.00040821,120]
[381542987,1756273855678,-480.0,0.00040821,120]
[381542988,1756273855687,-480.0,0.00040821,120]
[381542989,1756273855696,-151.92688484,0.00040821,120]
[381542990,1756273855705,-480.0,0.00040821,120]
[381542991,1756273855715,-480.0,0.00040821,120]
[381542992,1756273855724,-480.0,0.00040821,120]
[381542993,1756273855733,-480.0,0.00040821,120]
[381542994,1756273855743,-480.0,0.00040821,120]
[381542995,1756273855752,-480.0,0.00040821,120]
[381542996,1756273855762,-480.0,0.00040821,120]
[381542997,1756273855772,-480.0,0.00040821,120]
[381542998,1756273855782,-438.11780381,0.00040821,120]
[381542999,1756273855791,-480.0,0.00040821,120]
[381543000,1756273855801,-480.0,0.00040821,120]
[381543001,1756273855810,-480.98182289,0.00040821,120]
[381543002,1756273855820,-480.0,0.00040821,120]
[381543003,1756273855830,-319.70777967,0.00040821,120]
[381543004,1756273855839,-480.0,0.00040821,120]
[381543005,1756273855849,-480.0,0.00040821,120]
[381543006,1756273855858,-480.0,0.00040821,120]
[381543007,1756273855868,-480.0,0.00040821,120]
[381543008,1756273855878,-480.0,0.00040821,120]
[381543009,1756273855887,-480.0,0.00040821,120]
[381543010,1756273855897,-480.0,0.00040821,120]
[381543011,1756273855907,-480.0,0.00040821,120]
[381543012,1756273855916,-443.1953117,0.00040821,120]
[381543013,1756273855926,-480.0,0.00040821,120]
[381543014,1756273855935,-480.0,0.00040821,120]
[381543015,1756273855945,-480.0,0.00040821,120]
[381543016,1756273855954,-480.0,0.00040821,120]
[381543017,1756273855963,-480.0,0.00040821,120]
[381543018,1756273855973,-480.0,0.00040821,120]
[381543019,1756273855982,-480.0,0.00040821,120]
[381543020,1756273855991,-480.0,0.00040821,120]
[381543021,1756273856001,-480.0,0.00040821,120]
[381543022,1756273856010,-480.0,0.00040821,120]
[381543023,1756273856020,-347.74497051,0.00040821,120]
[381543024,1756273856030,-480.0,0.00040821,120]
[381543025,1756273856039,-480.0,0.00040821,120]
[381543026,1756273856048,-480.0,0.00040821,120]
[381543027,1756273856057,-480.0,0.00040821,120]
[381543028,1756273856066,-480.0,0.00040821,120]
[381543029,1756273856076,-480.0,0.00040821,120]
[381543030,1756273856085,-400.0,0.00040821,120]
[381543031,1756273856094,-480.0,0.00040821,120]
[381543032,1756273856104,-480.0,0.00040821,120]
[381543033,1756273856113,-480.0,0.00040821,120]
[381543034,1756273856122,-236.23698014,0.00040821,120]
[381543035,1756273856131,-480.0,0.00040821,120]
[381543036,1756273856141,-481.88664325,0.00040821,120]
[381543037,1756273856150,-480.0,0.00040821,120]
[381543038,1756273856159,-481.88076988,0.00040821,120]
[381543039,1756273856168,-480.0,0.00040821,120]
[381543040,1756273856177,-482.36969083,0.00040821,120]
[381543041,1756273856186,-480.0,0.00040821,120]
[381543042,1756273856196,-480.0,0.00040821,120]
[381543043,1756273856205,-480.0,0.00040821,120]
[381543044,1756273856214,-415.90203473,0.00040821,120]
[381543045,1756273856224,-480.0,0.00040821,120]
[381543046,1756273856233,-482.47693872,0.00040821,120]
[381543047,1756273856243,-480.0,0.00040821,120]
[381543048,1756273856252,-480.0,0.00040821,120]
[381543049,1756273856262,-480.0,0.00040821,120]
[381543050,1756273856271,-480.0,0.00040821,120]
[381543051,1756273856282,-480.0,0.00040821,120]
[381543052,1756273856291,-480.0,0.00040821,120]
[381543053,1756273856300,-480.0,0.00040821,120]
[381543054,1756273856310,-482.4674001,0.00040821,120]
[381543055,1756273856319,-480.0,0.00040821,120]
[381543056,1756273856328,-480.0,0.00040821,120]
[381543057,1756273856342,-480.0,0.00040821,120]
[381543058,1756273856353,-231.54718855,0.00040821,120]
[381543059,1756273856362,-480.0,0.00040821,120]
[381543060,1756273856371,-480.0,0.00040821,120]
[381543061,1756273856383,-480.0,0.00040821,120]
[381543062,1756273856392,-480.0,0.00040821,120]
[381543063,1756273856401,-480.0,0.00040821,120]
[381543064,1756273856411,-480.0,0.00040821,120]
[381543065,1756273856421,-480.0,0.00040821,120]
[381543066,1756273856430,-480.0,0.00040821,120]
[381543067,1756273856440,-480.0,0.00040821,120]
[381543068,1756273856449,-480.0,0.00040821,120]
[381543069,1756273856459,-480.0,0.00040821,120]
[381543070,1756273856468,-480.0,0.00040821,120]
[381543071,1756273856479,-349.40172221,0.00040821,120]
[381543072,1756273856489,-480.0,0.00040821,120]
[381543073,1756273856498,-480.0,0.00040821,120]
[381543074,1756273856508,-480.0,0.00040821,120]
[381543075,1756273856518,-480.0,0.00040821,120]
[381543076,1756273856528,-4014.6,0.00040821,120]
[381543077,1756273856537,-480.0,0.00040821,120]
[381543078,1756273856547,-480.0,0.00040821,120]
[381543079,1756273856557,-4014.6,0.00040821,120]
[381543080,1756273856566,-295.21205292,0.00040821,120]
[381543081,1756273856576,-4014.6,0.00040821,120]
[381543082,1756273856586,-4014.6,0.00040821,120]